bitfinex-derivatives/quotes_SOLF0:USTF0_20241212
["timestamp","ask_amount","ask_price","bid_price","bid_amount"]
[1733972620082,12.13877963,228.69,228.57,2.7545]
[1733972620774,12.13877963,228.66,228.5,12.13877963]
[1733972620982,12.13877963,228.63,228.5,12.13877963]
[1733972621179,12.13877963,228.63,228.49,5.32808352]
[1733972621384,2.1856,228.6,228.55,2.186]
[1733972621981,2.1855,228.61,228.49,5.32808352]
[1733972622283,5.9009,228.65,228.53,12.13877963]
[1733972623084,12.13877963,228.64,228.5,15.00967963]
[1733972623884,5.9009,228.65,228.5,15.00967963]
[1733972624583,5.9009,228.65,228.53,12.13877963]
[1733972625290,3.22,228.65,228.56,12.13877963]
[1733972626291,3.22,228.65,228.53,12.13877963]
[1733972626589,3.22,228.65,228.6,2.1855]
[1733972626787,2.185,228.66,228.6,2.1855]
[1733972627994,6.8083,228.68,228.53,12.13877963]
[1733972629696,4.6234,228.68,228.62,2.1853]
[1733972629992,4.6234,228.68,228.56,12.13877963]
[1733972630594,6.8082,228.68,228.63,2.1852]
[1733972630785,4.6234,228.68,228.56,12.13877963]
[1733972630985,4.6234,228.68,228.59,2.1856]
[1733972630986,2.185,228.66,228.59,2.1856]
[1733972631187,4.6234,228.68,228.55,3.22]
[1733972631394,12.13877963,228.66,228.55,3.22]
[1733972631592,12.13877963,228.63,228.5,13.60007963]
[1733972632290,2.1854,228.61,228.5,13.60007963]
[1733972632594,12.13877963,228.63,228.5,1.4613]
[1733972632785,1.3767,228.62,228.5,1.4613]
[1733972632984,3.22,228.61,228.5,1.4613]
[1733972633184,12.13877963,228.6,228.49,5.32808352]
[1733972633989,2.1859,228.57,228.38,17.85988932]
[1733972634192,4.5995,228.61,228.3,23.60780851]
[1733972634193,12.13877963,228.4,228.3,23.60780851]
[1733972634496,12.13877963,228.4,228.25,119.54118442]
[1733972634497,12.13877963,228.33,228.25,5.97983085]
[1733972634792,12.13877963,228.27,228.2,5.33420423]
[1733972634987,12.13877963,228.24,228.2,5.33420423]
[1733972635186,12.13877963,228.21,228.18,3.22]
[1733972635393,12.13877963,228.21,228.05,1.4646]
[1733972635595,12.13877963,228.17,228.15,2.54584132]
[1733972635795,12.13877963,228.17,228.06,3.48]
[1733972635796,12.13877963,228.17,228.14,3.48]
[1733972636093,12.13877963,228.17,228.15,2.19154065]
[1733972636293,12.13877963,228.16,228.13,3.48]
[1733972636495,12.13877963,228.16,228.05,1.4646]
[1733972636689,38.32706115,228.15,228.12,5.15135325]
[1733972636891,12.13877963,228.13,228.04,3.48]
[1733972637201,181.62822127,228.21,228.04,3.48]
[1733972637202,19.49331838,228.1,228.04,3.48]
[1733972637389,4.27669372,228.09,228.04,3.48]
[1733972637695,19.49331838,228.06,227.93,4.3065]
[1733972637995,4.27669372,228.05,227.94,5.6718]
[1733972638190,19.49331838,228.06,227.94,2.1918]
[1733972638386,4.2515088,228.05,227.94,2.1918]
[1733972638587,4.2515088,228.05,227.93,4.3065]
[1733972638892,4.2515088,228.04,227.94,3.48]
[1733972639088,4.2515088,228.03,227.93,4.3065]
[1733972639293,19.49331838,228.02,227.93,2.8667]
[1733972639494,4.2515088,228.01,227.93,6.3467]
[1733972639694,2.1916,227.98,227.93,3.48]
[1733972639891,4.2515088,227.97,227.86,45.5]
[1733972640092,21.68491838,227.98,227.87,3.48]
[1733972640287,4.23930702,227.97,227.87,3.48]
[1733972640592,21.68491838,227.98,227.88,3.48]
[1733972640796,4.23939671,227.97,227.86,45.5]
[1733972640988,19.49331838,227.94,227.84,0.20841]
[1733972641193,19.49331838,227.94,227.85,3.48]
[1733972641491,4.22660018,227.93,227.86,3.48]
[1733972641695,181.62822127,228.0,227.86,0.00324119]
[1733972641894,23.71958917,227.99,227.86,0.00324119]
[1733972642096,19.49331838,227.99,227.86,0.00324119]
[1733972642395,19.49331838,227.95,227.87,3.48]
[1733972642894,4.21619826,227.94,227.87,3.48]
[1733972643098,24.73665118,227.95,227.87,3.48]
[1733972643495,24.73665118,227.95,227.87,0.03037025]
[1733972643702,19.49331838,227.99,227.88,3.48]
[1733972643900,19.49331838,227.99,227.89,3.48]
[1733972644097,5.30942275,228.01,227.89,3.48]
[1733972644402,19.49331838,228.04,227.89,0.05749379]
[1733972644704,19.49331838,228.04,227.9,3.48]
[1733972645396,21.68431838,228.04,227.92,2.192]
[1733972645597,19.49331838,228.04,227.9,3.48]
[1733972645801,19.49331838,228.08,227.9,3.48]
[1733972646102,4.19048235,228.07,227.96,2.1916]
[1733972646298,19.49331838,228.08,227.97,3.48]
[1733972646502,5.15204024,228.08,227.97,3.48]
[1733972646699,5.15204024,228.08,227.97,5.6715]
[1733972647797,3.48,228.16,228.0,2.1912]
[1733972647798,2.1902,228.12,228.0,2.1912]
[1733972648005,6.37325814,228.11,227.97,3.48]
[1733972648195,2.19192494,228.11,227.97,3.48]
[1733972648507,2.19192494,228.11,228.0,2.1912]
[1733972648802,2.19192494,228.11,227.97,3.48]
[1733972649399,2.19192494,228.11,227.98,2.1914]
[1733972649805,2.19192494,228.11,227.97,3.48]
[1733972650000,2.1906,228.08,227.97,2.1915]
[1733972650300,2.19230937,228.07,227.98,3.48]
[1733972651601,2.1896,228.18,228.02,19.49331838]
[1733972651795,2.19134855,228.17,228.02,19.49331838]
[1733972652001,2.19134855,228.17,228.03,1.4039]
[1733972652402,2.19134855,228.17,228.06,19.49331838]
[1733972652702,2.19134855,228.17,228.07,4.9038]
[1733972653100,2.19134855,228.17,228.09,19.49331838]
[1733972653805,2.19134855,228.17,228.14,2.1899]
[1733972654002,2.19134855,228.17,228.15,3.48]
[1733972654503,2.19134855,228.17,228.15,5.6698]
[1733972654900,2.19134855,228.17,228.15,2.1898]
[1733972655104,5.27024552,228.28,228.17,2.1896]
[1733972655307,7.46053814,228.28,228.16,3.48]
[1733972656409,7.46053814,228.28,228.14,3.48]
[1733972656410,4.1673284,228.27,228.14,3.48]
[1733972656706,7.46053814,228.28,228.14,3.48]
[1733972657013,4.16732676,228.27,228.14,3.48]
[1733972657207,4.16856628,228.26,228.14,3.48]
[1733972657401,7.46053814,228.28,228.14,3.48]
[1733972657603,2.1891,228.23,228.14,3.48]
[1733972657808,7.46053814,228.28,228.14,3.48]
[1733972658008,4.1685682,228.27,228.14,3.48]
[1733972658304,4.1685682,228.26,228.14,3.48]
[1733972658511,7.46053814,228.28,228.14,3.48]
[1733972658714,4.16976587,228.27,228.14,3.48]
[1733972659007,4.16976587,228.26,228.14,3.48]
[1733972659202,7.46053814,228.28,228.14,3.48]
[1733972659406,4.17070332,228.27,228.14,3.48]
[1733972659608,2.1891,228.23,228.14,3.48]
[1733972659809,7.46053814,228.28,228.1,5.3611934]
[1733972660004,7.46053814,228.28,228.07,1.4238]
[1733972660005,19.49331838,228.26,228.11,3.48]
[1733972660204,2.1894,228.2,228.1,5.6703]
[1733972660406,19.49331838,228.22,228.1,3.48]
[1733972661307,19.49331838,228.22,228.07,6.68662225]
[1733972661610,2.1893,228.21,228.08,3.48]
[1733972661807,22.97331838,228.28,228.08,3.48]
[1733972662107,2.1889,228.26,228.12,19.49331838]
[1733972662300,2.1889,228.26,228.07,6.68662225]
[1733972662301,19.49331838,228.24,228.07,5.26282225]
[1733972662505,19.49331838,228.24,228.13,2.19]
[1733972662701,4.17517971,228.23,228.08,1.433]
[1733972662900,19.49331838,228.24,228.08,1.433]
[1733972663111,19.49331838,228.24,228.12,2.1901]
[1733972663301,4.17750721,228.23,228.12,2.1901]
[1733972663505,19.49331838,228.24,228.09,3.48]
[1733972663808,5.31592895,228.26,228.09,3.48]
[1733972663809,4.17749721,228.23,228.09,3.48]
[1733972664107,5.31592895,228.26,228.09,3.48]
[1733972664108,5.31592895,228.26,228.11,19.49331838]
[1733972664409,6.36968562,228.25,228.17,2.1896]
[1733972664610,19.49331838,228.28,228.16,3.46]
[1733972664807,4.1807836,228.27,228.16,3.46]
[1733972665007,2.1888,228.26,228.19,2.1894]
[1733972665707,19.49331838,228.28,228.16,3.46]
[1733972666005,9.42419943,228.27,228.11,3.46]
[1733972666204,4.18421536,228.26,228.14,2.1899]
[1733972666403,2.1894,228.2,228.14,2.1899]
[1733972666805,2.1894,228.21,228.13,2.19]
[1733972667005,19.49331838,228.24,228.11,3.46]
[1733972667207,4.19041108,228.23,228.11,3.46]
[1733972667403,4.19041108,228.23,228.09,1.3666]
[1733972667404,4.19070452,228.22,228.09,1.3666]
[1733972667609,19.49331838,228.24,228.1,3.46]
[1733972667811,4.19067342,228.23,228.1,3.46]
[1733972668012,2.1896,228.18,228.11,2.1902]
[1733972668207,19.49331838,228.24,228.1,3.46]
[1733972668407,4.19445644,228.23,228.1,5.6503]
[1733972668602,4.19445644,228.22,228.09,1.3666]
[1733972668804,4.19445644,228.21,228.07,8.72282225]
[1733972669107,2.1897,228.17,228.09,2.1904]
[1733972669303,19.49331838,228.24,228.09,2.1904]
[1733972669614,4.19820584,228.23,228.07,24.75614063]
[1733972669907,4.19820584,228.22,228.07,27.42904063]
[1733972670111,4.19820584,228.21,228.07,27.42904063]
[1733972670313,6.38760584,228.2,228.07,27.42904063]
[1733972670509,4.19820584,228.19,228.07,27.42904063]
[1733972670906,6.38770584,228.19,228.1,2.1903]
[1733972671213,4.20830372,228.18,228.07,27.42904063]
[1733972671410,2.1895,228.19,228.07,27.42904063]
[1733972671609,2.1895,228.19,228.13,2.19]
[1733972671910,4.20830396,228.18,228.13,2.19]
[1733972672210,4.20964671,228.17,228.14,2.1899]
[1733972672411,4.20964671,228.16,228.14,2.1899]
[1733972672613,19.49331838,228.24,228.14,2.1899]
[1733972672809,4.21435214,228.23,228.14,2.1899]
[1733972673015,4.21435214,228.22,228.14,2.1899]
[1733972673212,4.21435214,228.21,228.14,2.1899]
[1733972673413,4.21435214,228.2,228.14,2.1899]
[1733972673612,4.21435214,228.19,228.14,2.1899]
[1733972673914,4.21435214,228.19,228.15,2.1898]
[1733972674105,4.21435214,228.18,228.13,3.46]
[1733972674307,4.21435214,228.17,228.13,3.46]
[1733972674512,28.16719521,228.29,228.22,2.1891]
[1733972674724,2.1887,228.28,228.15,19.49331838]
[1733972674918,2.1887,228.28,228.22,2.1891]
[1733972675224,2.1887,228.28,228.15,19.49331838]
[1733972675225,2.1883,228.32,228.2,3.46]
[1733972675435,70.05397416,228.33,228.2,3.46]
[1733972675632,70.05397416,228.33,228.28,2.1886]
[1733972675830,70.05397416,228.33,228.21,2.6893]
[1733972676128,70.05397416,228.33,228.26,2.1887]
[1733972676521,72.24217416,228.33,228.24,2.1889]
[1733972676727,70.05397416,228.33,228.21,2.6893]
[1733972678126,12.63422479,228.32,228.21,2.6893]
[1733972678326,12.63422479,228.31,228.21,2.6893]
[1733972678521,2.1885,228.29,228.21,2.6893]
[1733972678719,2.1885,228.29,228.24,2.189]
[1733972678913,70.05397416,228.33,228.21,2.6893]
[1733972679116,12.6338143,228.32,228.21,2.6893]
[1733972679319,2.1884,228.3,228.24,2.189]
[1733972679522,70.05397416,228.33,228.21,2.6893]
[1733972679717,28.22095223,228.32,228.21,1.3532]
[1733972680118,2.1887,228.27,228.19,3.46]
[1733972681022,2.1887,228.27,228.22,2.1891]
[1733972681423,2.1884,228.31,228.19,3.46]
[1733972681630,251.68219543,228.33,228.19,22.95331838]
[1733972681826,70.05397416,228.33,228.2,2.7985]
[1733972682026,70.05397416,228.33,228.23,2.189]
[1733972682243,70.05397416,228.33,228.2,2.7985]
[1733972682626,2.1882,228.32,228.26,2.1887]
[1733972682822,70.05397416,228.33,228.2,2.7985]
[1733972684422,2.1885,228.3,228.24,2.189]
[1733972684626,70.05397416,228.33,228.2,2.7985]
[1733972684828,28.27398037,228.32,228.23,2.1891]
[1733972685027,28.27398037,228.32,228.2,2.7985]
[1733972685628,2.1882,228.32,228.23,2.189]
[1733972685831,70.05397416,228.33,228.2,2.7985]
[1733972686431,2.1883,228.31,228.25,2.1888]
[1733972687028,28.31215939,228.32,228.2,1.3636]
[1733972687227,28.31215939,228.32,228.19,3.46]
[1733972687436,2.1887,228.27,228.17,3.26]
[1733972687730,2.8235,228.31,228.17,3.26]
[1733972688029,2.1886,228.28,228.22,2.1891]
[1733972688232,212.96752596,228.31,228.17,3.26]
[1733972688430,31.13565939,228.31,228.17,3.26]
[1733972689330,2.8235,228.31,228.17,3.26]
[1733972689924,2.1886,228.28,228.23,2.189]
[1733972690329,2.8235,228.31,228.17,3.26]
[1733972690536,70.05397416,228.33,228.19,19.49331838]
[1733972691130,2.1882,228.32,228.27,2.1887]
[1733972691433,70.05397416,228.33,228.25,2.1889]
[1733972691434,2.1884,228.31,228.25,2.1889]
[1733972691631,70.05397416,228.33,228.25,2.1889]
[1733972691831,5.23919651,228.34,228.19,19.49331838]
[1733972692135,7.42729651,228.34,228.29,2.1885]
[1733972692830,2.1882,228.33,228.27,2.1886]
[1733972693635,5.23919651,228.34,228.24,3.26]
[1733972693931,24.73251489,228.34,228.24,3.26]
[1733972694433,2.1886,228.28,228.24,3.26]
[1733972696630,2.1887,228.27,228.24,3.26]
[1733972696833,24.73251489,228.34,228.19,3.26]
[1733972697030,12.37643175,228.33,228.19,3.26]
[1733972697231,2.1886,228.29,228.21,2.1893]
[1733972697536,24.73251489,228.34,228.21,2.1893]
[1733972697738,12.37994437,228.33,228.21,2.1893]
[1733972697933,12.37994437,228.32,228.19,3.26]
[1733972698133,12.37994437,228.32,228.16,5.33012559]
[1733972698134,3.26,228.31,228.11,22.36791838]
[1733972698437,3.26,228.31,228.14,3.26]
[1733972698637,31.87469885,228.3,228.11,22.36791838]
[1733972698937,19.49331838,228.3,228.13,5.13828101]
[1733972699136,2.808,228.29,228.13,5.13828101]
[1733972700131,2.1892,228.22,228.13,5.13828101]
[1733972700337,2.808,228.29,228.13,5.13828101]
[1733972700631,2.1894,228.2,228.14,2.1899]
[1733972700829,2.1894,228.2,228.13,5.13828101]
[1733972701032,19.49331838,228.26,228.11,1.4603]
[1733972702131,19.49331838,228.26,228.1,4.5971]
[1733972702340,2.1895,228.19,228.12,2.19]
[1733972702640,3.26,228.24,228.12,2.19]
[1733972703329,2.1897,228.17,228.1,5.4502]
[1733972703538,2.1897,228.17,228.09,5.16217553]
[1733972703731,2.1897,228.17,228.03,19.49331838]
[1733972703936,19.49331838,228.22,228.03,19.49331838]
[1733972704136,19.49331838,228.18,228.02,3.26]
[1733972704334,7.4888,228.17,227.99,20.85201838]
[1733972704535,7.4888,228.17,228.02,2.191]
[1733972704740,19.49331838,228.14,227.99,1.3587]
[1733972704938,2.1909,228.05,227.98,1.3419]
[1733972705642,3.26,228.1,228.0,2.1913]
[1733972705842,3.26,228.1,227.98,1.3419]
[1733972706237,2.1907,228.06,227.99,2.1914]
[1733972706439,3.26,228.1,227.98,1.3419]
[1733972706638,5.4504,228.1,228.03,2.191]
[1733972706837,3.26,228.1,227.98,1.3419]
[1733972707239,5.4504,228.1,228.01,2.1911]
[1733972707438,5.4504,228.1,227.98,1.3419]
[1733972707439,3.26,228.1,227.98,1.3419]
[1733972708141,2.1905,228.09,228.03,2.191]
[1733972708338,4.2288,228.17,227.99,19.49331838]
[1733972708539,7.4888,228.17,227.99,19.49331838]
[1733972709541,2.1902,228.12,227.99,19.49331838]
[1733972709742,7.4888,228.17,227.99,19.49331838]
[1733972709947,4.2288,228.17,227.99,19.49331838]
[1733972710149,2.1901,228.13,228.06,2.1907]
[1733972710443,4.2288,228.17,227.99,22.75331838]
[1733972710638,19.49331838,228.14,227.99,3.26]
[1733972711242,2.1901,228.13,228.04,2.1909]
[1733972711443,2.1901,228.13,227.99,22.75331838]
[1733972711942,2.1901,228.12,227.99,22.75331838]
[1733972712342,2.1901,228.12,227.99,19.49331838]
[1733972712543,2.1902,228.11,228.05,2.1907]
[1733972712947,4.2288,228.17,228.0,3.26]
[1733972713445,4.2288,228.17,228.03,2.1909]
[1733972713649,19.49331838,228.14,228.0,3.26]
[1733972713845,2.1905,228.09,228.03,2.191]
[1733972714147,19.49331838,228.14,228.0,3.26]
[1733972714352,19.49331838,228.04,227.76,4.3871]
[1733972714545,3.26,228.03,227.85,22.18871838]
[1733972714849,3.26,228.02,227.85,25.44871838]
[1733972715051,4.3028,228.03,227.85,25.44871838]
[1733972715254,5.3842305,228.22,227.89,19.49331838]
[1733972715446,4.3781,228.24,227.98,2.1914]
[1733972715447,2.1907,228.06,227.98,2.1914]
[1733972715650,2.1907,228.06,227.93,22.75331838]
[1733972715852,3.26,228.09,227.93,22.75331838]
[1733972716054,2.1909,228.04,227.98,2.1915]
[1733972716249,5.38664607,228.08,227.93,22.75331838]
[1733972716649,7.57724607,228.08,228.01,2.1912]
[1733972717054,5.38664607,228.08,228.01,2.1912]
[1733972717350,2.1906,228.07,228.01,2.1912]
[1733972717651,4.4093,228.13,227.97,19.49331838]
[1733972717652,2.1902,228.12,227.97,19.49331838]
[1733972717848,2.1902,228.12,227.98,2.7656]
[1733972718056,7.5293,228.13,227.98,2.7656]
[1733972718646,2.1902,228.11,228.05,2.1908]
[1733972719052,7.5293,228.13,227.98,2.7656]
[1733972719259,5.2565198,228.12,227.98,2.7656]
[1733972719456,24.74983818,228.12,227.98,2.7656]
[1733972720155,24.74983818,228.12,227.99,2.1914]
[1733972721549,24.74983818,228.12,227.98,2.1915]
[1733972721750,19.49331838,228.08,227.91,3.12]
[1733972721948,19.49331838,228.04,227.9,1.3388]
[1733972722149,19.49331838,228.04,227.9,3.531]
[1733972722348,19.49331838,228.04,227.89,2.8408]
[1733972722553,2.1919,227.95,227.85,24.62513385]
[1733972723150,3.12,227.99,227.85,19.49331838]
[1733972723351,2.1919,227.94,227.87,2.1925]
[1733972723859,2.192,227.93,227.87,2.1925]
[1733972725352,3.12,227.99,227.83,4.113]
[1733972725555,3.12,227.99,227.75,19.49331838]
[1733972725556,19.49331838,227.96,227.75,19.49331838]
[1733972725856,19.49331838,227.96,227.76,4.5466]
[1733972726056,2.1921,227.93,227.85,2.1927]
[1733972726256,2.1921,227.93,227.76,4.5466]
[1733972726659,2.1921,227.93,227.87,2.1925]
[1733972726856,2.1921,227.93,227.79,19.49331838]
[1733972727053,2.1921,227.92,227.85,2.1926]
[1733972727253,2.1921,227.92,227.82,3.12]
[1733972728460,2.1922,227.91,227.84,2.1928]
[1733972728661,2.1922,227.91,227.82,3.12]
[1733972728859,8.43614055,227.96,227.79,5.1476917]
[1733972729059,19.49331838,227.93,227.79,5.1476917]
[1733972729360,19.49331838,227.93,227.77,3.12]
[1733972729555,2.1922,227.91,227.84,2.1928]
[1733972729753,19.49331838,227.93,227.77,3.12]
[1733972730159,2.1925,227.88,227.8,2.1931]
[1733972731158,2.1927,227.86,227.79,2.1933]
[1733972731959,2.1927,227.86,227.8,2.1932]
[1733972732162,2.1925,227.88,227.75,8.32131506]
[1733972732360,1.3996,227.92,227.75,8.32131506]
[1733972732663,4.5196,227.92,227.75,8.32131506]
[1733972732863,2.1923,227.9,227.75,8.32131506]
[1733972733266,16.71922358,227.92,227.78,12.19962358]
[1733972733568,2.1924,227.89,227.78,12.19962358]
[1733972733962,2.1925,227.88,227.81,2.193]
[1733972734266,2.1925,227.88,227.76,3.12]
[1733972734569,12.19962358,227.89,227.84,2.1928]
[1733972734761,2.1923,227.9,227.84,2.1928]
[1733972736168,12.19962358,227.89,227.82,2.1929]
[1733972736464,12.19962358,227.89,227.76,3.12]
[1733972736771,12.19962358,227.89,227.75,17.40093864]
[1733972736772,12.19962358,227.86,227.75,5.20131506]
[1733972737567,2.1929,227.83,227.72,15.31962358]
[1733972738069,2.1928,227.84,227.78,2.1934]
[1733972738469,2.1928,227.84,227.72,15.31962358]
[1733972738470,12.19962358,227.86,227.73,5.38505816]
[1733972738772,14.39232358,227.86,227.73,5.38505816]
[1733972739266,14.39232358,227.86,227.76,2.1935]
[1733972739468,14.39232358,227.86,227.73,5.38505816]
[1733972739669,12.19962358,227.86,227.73,5.38505816]
[1733972740069,12.19962358,227.86,227.8,2.1932]
[1733972740468,12.19962358,227.86,227.73,5.38505816]
[1733972740671,15.31962358,227.89,227.75,12.19962358]
[1733972741175,2.1924,227.88,227.75,12.19962358]
[1733972742465,12.19962358,227.89,227.75,12.19962358]
[1733972742665,2.1922,227.91,227.78,12.19962358]
[1733972742867,15.31962358,227.95,227.81,12.19962358]
[1733972743076,2.1919,227.94,227.85,2.1926]
[1733972743269,2.1919,227.94,227.82,4.2724]
[1733972743672,2.1919,227.94,227.85,2.1927]
[1733972743869,2.192,227.93,227.82,4.2724]
[1733972744570,2.192,227.93,227.88,2.1924]
[1733972745870,12.19962358,227.95,227.82,4.2724]
[1733972745871,12.19962358,227.95,227.89,2.1923]
[1733972746069,12.19962358,227.95,227.82,4.2724]
[1733972747674,5.31614055,227.96,227.84,12.19962358]
[1733972747879,5.31614055,227.96,227.85,3.04]
[1733972748471,2.1917,227.96,227.9,2.1922]
[1733972748675,12.19962358,227.98,227.85,3.04]
[1733972749072,2.1916,227.97,227.9,2.1922]
[1733972750182,14.39112358,227.98,227.85,3.04]
[1733972751381,14.39112358,227.98,227.91,2.1921]
[1733972751975,14.39112358,227.98,227.92,2.192]
[1733972753183,70.15411734,228.0,227.87,12.19962358]
[1733972753383,12.19962358,228.04,227.9,12.19962358]
[1733972753575,2.1905,228.09,227.96,12.19962358]
[1733972753777,5.36760257,228.08,227.97,5.9692]
[1733972754183,5.36760257,228.08,228.02,2.1911]
[1733972754382,5.36760257,228.08,227.97,5.9692]
[1733972755582,7.55820257,228.08,227.97,5.9692]
[1733972755983,2.1904,228.1,228.03,2.191]
[1733972756193,5.13776593,228.09,228.03,2.191]
[1733972757687,7.32816593,228.09,228.03,2.191]
[1733972759993,2.1905,228.08,228.01,2.1911]
[1733972760200,2.1905,228.08,227.97,5.9692]
[1733972760702,2.1906,228.07,227.97,5.9692]
[1733972761302,12.19962358,228.08,228.02,2.1911]
[1733972761501,14.39012358,228.08,228.02,2.1911]
[1733972762906,14.39022358,228.08,228.02,2.1911]
[1733972763101,2.1906,228.08,228.02,2.1911]
[1733972763301,12.19962358,228.11,227.97,5.9692]
[1733972763497,2.1904,228.1,227.97,5.9692]
[1733972763908,2.1904,228.1,228.0,2.1912]
[1733972764205,7.56670677,228.1,227.97,5.9692]
[1733972764606,2.1904,228.09,228.03,2.1909]
[1733972766005,2.1904,228.09,227.97,5.9692]
[1733972766006,12.19962358,228.11,227.99,12.19962358]
[1733972766209,12.19962358,228.14,227.99,12.19962358]
[1733972767108,5.19322088,228.13,227.99,12.19962358]
[1733972767706,2.1901,228.12,228.07,2.1905]
[1733972768808,3.04,228.18,228.03,3.04]
[1733972769006,12.19962358,228.21,228.05,12.19962358]
[1733972769309,4.0815,228.27,228.08,12.19962358]
[1733972769516,12.19962358,228.24,228.11,12.19962358]
[1733972770309,7.39656898,228.25,228.15,2.1898]
[1733972770517,7.39656898,228.25,228.15,3.04]
[1733972770707,19.32112358,228.27,228.15,3.04]
[1733972771109,2.1888,228.26,228.21,2.1893]
[1733972771310,7.43581628,228.26,228.21,2.1893]
[1733972771717,15.23962358,228.27,228.15,3.04]
[1733972771914,12.19962358,228.27,228.22,2.1892]
[1733972772213,5.33970543,228.31,228.2,12.19962358]
[1733972772412,5.33970543,228.31,228.21,3.04]
[1733972773321,5.33970543,228.31,228.21,5.8576]
[1733972774317,14.38782358,228.33,228.27,2.1886]
[1733972774518,12.19962358,228.33,228.21,5.8576]
[1733972774718,2.1882,228.32,228.26,2.1887]
[1733972775316,2.1881,228.34,228.23,12.19962358]
[1733972775522,12.19962358,228.36,228.23,12.19962358]
[1733972776619,2.1882,228.33,228.26,2.1887]
[1733972776917,5.24639068,228.32,228.26,2.1887]
[1733972777315,7.43459068,228.32,228.26,2.1887]
[1733972778626,5.24639068,228.32,228.23,12.19962358]
[1733972779615,15.17962358,228.39,228.26,12.19962358]
[1733972780117,15.17962358,228.39,228.27,2.98]
[1733972780324,2.98,228.39,228.29,12.19962358]
[1733972780719,12.19962358,228.43,228.29,12.19962358]
[1733972780923,2.1876,228.39,228.32,2.1882]
[1733972781425,12.19962358,228.43,228.32,2.1882]
[1733972781625,2.98,228.44,228.32,2.1882]
[1733972781626,2.1875,228.4,228.32,2.1882]
[1733972781822,12.19962358,228.42,228.32,2.1882]
[1733972782122,2.1876,228.39,228.32,2.1882]
[1733972782527,5.25522372,228.38,228.32,2.1882]
[1733972783828,5.25522372,228.38,228.33,2.1881]
[1733972784030,4.3089,228.46,228.29,12.19962358]
[1733972784225,2.1873,228.42,228.35,2.1879]
[1733972784422,12.19962358,228.45,228.32,12.19962358]
[1733972784723,2.187,228.45,228.38,2.1876]
[1733972784921,12.19962358,228.48,228.33,5.7427]
[1733972785123,5.26100273,228.43,228.33,5.7427]
[1733972785326,5.26100273,228.43,228.36,2.1878]
[1733972786022,5.26100273,228.43,228.33,5.7427]
[1733972786627,5.26100273,228.43,228.38,2.1876]
[1733972786823,5.26100273,228.43,228.33,5.7427]
[1733972787327,12.19962358,228.48,228.35,12.19962358]
[1733972787928,5.13122821,228.46,228.33,5.7427]
[1733972788328,4.0852,228.57,228.35,12.19962358]
[1733972788523,4.0852,228.57,228.41,12.19962358]
[1733972788831,12.19962358,228.56,228.42,2.96]
[1733972789029,12.19962358,228.56,228.44,12.19962358]
[1733972789222,5.37732493,228.53,228.44,12.19962358]
[1733972789423,12.19962358,228.59,228.44,12.19962358]
[1733972789827,5.24287867,228.56,228.49,2.1865]
[1733972790029,5.24287867,228.56,228.44,12.19962358]
[1733972790730,17.44250225,228.56,228.43,2.8755]
[1733972790929,12.19962358,228.53,228.44,2.96]
[1733972791131,12.19962358,228.53,228.43,2.8755]
[1733972791327,2.1864,228.51,228.45,2.187]
[1733972791525,17.44250225,228.56,228.43,2.8755]
[1733972791728,2.1861,228.55,228.48,2.1867]
[1733972792028,17.44250225,228.56,228.43,2.8755]
[1733972794527,17.44250225,228.56,228.44,12.19962358]
[1733972794733,17.44250225,228.56,228.47,2.1868]
[1733972795733,17.44250225,228.56,228.44,12.19962358]
[1733972796134,17.44250225,228.56,228.51,2.1864]
[1733972796644,5.24287867,228.56,228.48,2.96]
[1733972796830,5.24287867,228.56,228.53,2.1861]
[1733972797336,5.24287867,228.56,228.51,2.1863]
[1733972798428,4.3665,228.85,228.48,2.96]
[1733972798634,12.19962358,228.6,228.48,2.96]
[1733972799136,2.1858,228.57,228.51,2.1864]
[1733972799832,12.19962358,228.57,228.47,2.96]